bitfinex/quotes_SOLUSD_20250609
["timestamp","ask_amount","ask_price","bid_price","bid_amount"]
[1749460063318,12.52442253,151.59,151.56,16.83790359]
[1749460063550,12.52442253,151.59,151.56,10.24]
[1749460063754,12.52442253,151.58,151.56,10.24]
[1749460063927,12.52442253,151.57,151.56,10.24]
[1749460064721,12.52442253,151.58,151.56,10.24]
[1749460068052,12.52442253,151.57,151.56,10.24]
[1749460074467,12.52442253,151.57,151.53,6.59920389]
[1749460074648,12.52442253,151.56,151.53,46.61920389]
[1749460075360,12.52442253,151.54,151.52,10.24]
[1749460075663,12.52442253,151.54,151.52,50.26]
[1749460076169,12.52442253,151.55,151.52,50.26]
[1749460077468,12.52442253,151.55,151.52,56.85952011]
[1749460079165,8.1191,151.59,151.52,69.38394264]
[1749460079338,12.52442253,151.58,151.54,12.52442253]
[1749460081369,12.52442253,151.59,151.55,19.12290487]
[1749460081666,12.52442253,151.6,151.56,40.02]
[1749460081863,12.52442253,151.6,151.57,10.24]
[1749460082044,12.52442253,151.61,151.57,10.24]
[1749460082754,12.52442253,151.61,151.57,16.83719913]
[1749460083658,12.52442253,151.61,151.57,29.36162166]
[1749460084062,19.12041442,151.61,151.57,10.24]
[1749460085852,12.52442253,151.6,151.57,10.24]
[1749460087168,12.52442253,151.61,151.57,16.83759098]
[1749460087662,12.52442253,151.61,151.57,29.36201351]
[1749460087858,38.52442253,151.62,151.57,29.36201351]
[1749460091869,45.1199211,151.62,151.57,29.36201351]
[1749460096064,12.52442253,151.61,151.57,29.36201351]
[1749460097766,12.52442253,151.62,151.57,29.36201351]
[1749460098191,12.52442253,151.62,151.58,12.52442253]
[1749460099199,12.52442253,151.62,151.57,29.36201351]
[1749460103467,19.11987916,151.62,151.57,29.36201351]
[1749460104596,12.52442253,151.61,151.57,29.36201351]
[1749460106282,12.52442253,151.61,151.57,16.83759098]
[1749460106587,12.52442253,151.61,151.57,29.36201351]
[1749460106786,19.12029426,151.61,151.58,40.0]
[1749460107092,12.52442253,151.61,151.58,40.0]
[1749460109302,8.02266489,151.61,151.58,40.0]
[1749460109794,8.02266489,151.6,151.55,26.0]
[1749460109983,8.02266489,151.6,151.56,58.26266489]
[1749460111195,8.02266489,151.6,151.56,64.86070787]
[1749460112695,14.61909473,151.6,151.56,58.26266489]
[1749460113703,8.02266489,151.6,151.56,64.8606052]
[1749460126310,8.02266489,151.61,151.57,8.02266489]
[1749460127311,8.02266489,151.61,151.57,14.62011963]
[1749460134088,8.02266489,151.61,151.57,6.59745474]
[1749460136102,14.61858737,151.61,151.56,14.62054648]
[1749460137322,8.02266489,151.61,151.56,14.62054648]
[1749460138404,8.02266489,151.61,151.56,6.59788159]
[1749460138615,8.02266489,151.61,151.56,14.62054648]
[1749460140500,8.02266489,151.6,151.55,32.59832236]
[1749460140800,8.02266489,151.6,151.55,40.62098725]
[1749460140994,8.02266489,151.57,151.53,8.02266489]
[1749460141228,0.14216157,151.6,151.52,14.62245369]
[1749460141229,8.02266489,151.56,151.52,14.62245369]
[1749460142405,8.02266489,151.55,151.5,26.0]
[1749460142725,8.02266489,151.56,151.52,8.02266489]
[1749460143110,8.02266489,151.57,151.52,8.02266489]
[1749460143813,8.02266489,151.57,151.53,6.59935326]
[1749460144026,8.02266489,151.56,151.53,6.59935326]
[1749460145402,8.02266489,151.56,151.49,6.60109578]
[1749460145725,8.02266489,151.56,151.52,8.02266489]
[1749460146024,8.02266489,151.55,151.49,6.60109578]
[1749460146224,8.02266489,151.55,151.51,8.02266489]
[1749460148418,8.02266489,151.55,151.51,14.62264807]
[1749460150340,8.02266489,151.54,151.49,6.60109578]
[1749460150516,8.02266489,151.53,151.49,8.02266489]
[1749460150823,8.02266489,151.52,151.48,40.62405102]
[1749460151006,8.02266489,151.53,151.49,8.02266489]
[1749460151206,8.02266489,151.53,151.48,32.60138613]
[1749460151420,8.02266489,151.53,151.49,8.02266489]
[1749460151729,8.02266489,151.53,151.49,14.62355264]
[1749460152714,8.02266489,151.52,151.47,1.5308]
[1749460152929,8.02266489,151.51,151.47,8.02266489]
[1749460154232,8.02266489,151.51,151.47,14.62453551]
[1749460154605,8.02266489,151.51,151.47,6.60187062]
[1749460154836,8.02266489,151.5,151.46,14.62489372]
[1749460155011,8.02266489,151.5,151.46,6.60222883]
[1749460155218,8.02266489,151.5,151.46,8.02266489]
[1749460155808,8.02266489,151.5,151.46,14.62496372]
[1749460156003,6.60025754,151.51,151.46,6.60229883]
[1749460156232,8.02266489,151.49,151.45,40.62544269]
[1749460156442,8.02266489,151.48,151.43,8.02266489]
[1749460157346,8.02266489,151.48,151.45,6.60283922]
[1749460157544,8.02266489,151.49,151.45,14.62550411]
[1749460158061,6.59949468,151.53,151.47,8.02266489]
[1749460158210,8.02266489,151.52,151.48,8.02266489]
[1749460158852,160.47456109,151.54,151.48,8.02266489]
[1749460159017,8.02266489,151.53,151.48,8.02266489]
[1749460159211,8.02266489,151.53,151.49,8.02266489]
[1749460159413,8.02266489,151.53,151.5,6.60066006]
[1749460160532,8.02266489,151.53,151.49,14.62373286]
[1749460160841,8.02266489,151.53,151.49,6.60106797]
[1749460161838,8.02266489,151.53,151.48,14.62402913]
[1749460163316,8.02266489,151.52,151.48,14.62402913]
[1749460163518,8.02266489,151.51,151.48,6.60136424]
[1749460164860,8.02266489,151.52,151.48,14.62402913]
[1749460166061,8.02266489,151.51,151.48,6.60136424]
[1749460166448,8.02266489,151.52,151.48,6.60136424]
[1749460166654,8.02266489,151.52,151.48,14.62402913]
[1749460168663,8.02266489,151.53,151.49,8.02266489]
[1749460169739,8.02266489,151.56,151.52,8.02266489]
[1749460169968,15.55976489,151.58,151.53,8.02266489]
[1749460170154,22.15697294,151.58,151.53,14.62160486]
[1749460170485,15.55976489,151.58,151.53,14.62160486]
[1749460172663,7.5371,151.58,151.53,14.62160486]
[1749460172876,1.53,151.58,151.55,8.02266489]
[1749460173047,8.16482646,151.6,151.55,8.02266489]
[1749460173241,161.33670274,151.61,151.56,12.53752841]
[1749460173448,173.87423115,151.61,151.56,12.53752841]
[1749460173962,173.87423115,151.61,151.57,12.53752841]
[1749460174267,180.4701373,151.61,151.56,12.53752841]
[1749460175443,180.4701373,151.61,151.56,19.13542094]
[1749460177169,12.53752841,151.6,151.56,19.13542094]
[1749460177778,19.1338935,151.6,151.55,12.53752841]
[1749460178263,12.53752841,151.56,151.52,38.53752841]
[1749460180278,19.13566696,151.56,151.52,38.53752841]
[1749460180754,12.53752841,151.54,151.5,38.53752841]
[1749460180951,12.53752841,151.53,151.49,12.53752841]
[1749460181260,12.53752841,151.52,151.47,12.53752841]
[1749460181666,12.53752841,151.52,151.48,6.60153155]
[1749460181872,12.53752841,151.53,151.49,12.53752841]
[1749460182050,12.53752841,151.55,151.5,12.53752841]
[1749460182251,20.32892841,151.57,151.53,12.53752841]
[1749460182646,20.32892841,151.57,151.52,12.53752841]
[1749460182903,12.53752841,151.56,151.51,12.53752841]
[1749460183763,12.53752841,151.56,151.51,19.13749626]
[1749460184085,19.13560441,151.56,151.51,19.13749626]
[1749460184785,12.53752841,151.55,151.51,12.53752841]
[1749460185001,12.53752841,151.55,151.5,19.13809018]
[1749460185291,12.53752841,151.53,151.49,19.13850511]
[1749460185981,6.59897788,151.54,151.49,19.13850511]
[1749460185982,19.13650629,151.54,151.49,19.13850511]
[1749460187069,12.53752841,151.53,151.49,19.13850511]
[1749460187461,12.53752841,151.53,151.49,12.53752841]
[1749460188455,12.53752841,151.54,151.49,19.13845096]
[1749460188664,12.53752841,151.54,151.5,12.53752841]
[1749460189070,12.53752841,151.54,151.5,19.13816198]
[1749460190156,12.53752841,151.54,151.49,19.13862419]
[1749460192257,12.53752841,151.54,151.5,12.53752841]
[1749460193680,14.38919608,151.57,151.51,19.13775281]
[1749460193979,20.32892841,151.57,151.52,12.53752841]
[1749460194374,7.7914,151.57,151.52,12.53752841]
[1749460194578,7.7914,151.57,151.53,12.53752841]
[1749460194579,12.53752841,151.57,151.53,12.53752841]
[1749460194780,19.13483216,151.58,151.53,12.53752841]
[1749460194971,12.53752841,151.56,151.52,19.13721509]
[1749460196183,12.53752841,151.57,151.52,19.13721509]
[1749460197461,32.59688086,151.59,151.54,12.53752841]
[1749460197690,38.53752841,151.59,151.54,12.53752841]
[1749460197870,175.72712476,151.61,151.55,12.53752841]
[1749460198074,12.53752841,151.6,151.55,12.53752841]
[1749460198374,175.72712476,151.61,151.55,12.53752841]
[1749460198375,12.53752841,151.59,151.55,12.53752841]
[1749460199172,12.53752841,151.59,151.55,19.13580487]
[1749460199372,12.53752841,151.6,151.55,19.13580487]
[1749460200891,19.13383985,151.6,151.55,19.13580487]
[1749460201270,19.13383985,151.6,151.55,12.53752841]
[1749460202173,12.53752841,151.6,151.56,12.53752841]
[1749460202376,175.72711778,151.61,151.53,23.09773641]
[1749460202377,181.66863115,151.61,151.57,12.53752841]
[1749460202697,161.33670274,151.61,151.58,12.53752841]
[1749460202895,146.1,151.61,151.58,12.53752841]
[1749460203197,19.13267062,151.63,151.58,12.53752841]
[1749460203198,12.53752841,151.63,151.58,12.53752841]
[1749460203374,40.5422058,151.65,151.6,12.53752841]
[1749460203575,53.07973421,151.65,151.6,12.53752841]
[1749460205096,12.53752841,151.64,151.59,12.53752841]
[1749460205597,12.53752841,151.63,151.59,12.53752841]
[1749460206175,12.53752841,151.6,151.54,14.12352841]
[1749460206393,12.53752841,151.6,151.55,12.53752841]
[1749460207200,12.53752841,151.6,151.55,19.13589682]
[1749460207372,12.53752841,151.62,151.58,12.53752841]
[1749460207575,12.53752841,151.62,151.55,6.59836841]
[1749460207576,19.1327711,151.63,151.59,12.53752841]
[1749460207791,12.53752841,151.63,151.59,12.53752841]
[1749460207991,12.53752841,151.63,151.6,12.53752841]
[1749460208208,19.13227347,151.64,151.6,12.53752841]
[1749460210299,19.13227347,151.64,151.59,12.53752841]
[1749460210300,12.53752841,151.63,151.59,12.53752841]
[1749460210813,12.53752841,151.63,151.58,12.53752841]
[1749460211399,12.53752841,151.62,151.57,12.53752841]
[1749460212176,12.53752841,151.62,151.57,45.13489865]
[1749460212374,12.53752841,151.62,151.57,32.59737024]
[1749460212580,12.53752841,151.62,151.57,45.13489865]
[1749460213107,12.53752841,151.62,151.58,12.53752841]
[1749460213306,12.53752841,151.63,151.58,12.53752841]
[1749460214181,12.53752841,151.63,151.59,19.13422235]
[1749460215107,12.53752841,151.64,151.6,12.53752841]
[1749460215493,53.0796398,151.65,151.6,12.53752841]
[1749460216314,12.53752841,151.64,151.6,12.53752841]
[1749460217101,27.0796398,151.65,151.6,19.13366707]
[1749460219807,19.13135915,151.66,151.62,12.53752841]
[1749460222188,19.13135915,151.66,151.61,12.53752841]
[1749460222394,12.53752841,151.64,151.6,19.13375362]
[1749460223409,6.59416147,151.65,151.6,19.13375362]
[1749460223617,12.53752841,151.64,151.6,19.13375362]
[1749460224317,6.59369642,151.66,151.6,19.13375362]
[1749460224611,12.53752841,151.65,151.6,19.13375362]
[1749460224793,12.53752841,151.64,151.6,12.53752841]
[1749460224991,12.53752841,151.64,151.6,19.1338056]
[1749460226119,12.53752841,151.64,151.6,12.53752841]
[1749460226417,19.13214141,151.64,151.6,12.53752841]
[1749460229907,12.53752841,151.64,151.6,19.13378756]
[1749460231432,19.13181457,151.65,151.61,12.53752841]
[1749460231604,12.53752841,151.65,151.61,12.53752841]
[1749460232021,12.53752841,151.65,151.61,19.13338277]
[1749460233122,19.13178603,151.65,151.61,12.53752841]
[1749460233422,12.53752841,151.65,151.61,19.13339334]
[1749460233921,12.53752841,151.65,151.57,42.49296862]
[1749460233922,19.13177922,151.65,151.6,12.53752841]
[1749460234340,12.53752841,151.64,151.6,12.53752841]
[1749460234625,12.53752841,151.63,151.58,19.13433645]
[1749460235032,12.53752841,151.62,151.58,19.13433645]
[1749460235220,12.53752841,151.63,151.59,12.53752841]
[1749460235399,12.53752841,151.62,151.57,45.13499474]
[1749460235605,12.53752841,151.61,151.57,45.13499474]
[1749460236542,12.53752841,151.62,151.57,45.13499474]
[1749460236727,12.53752841,151.62,151.58,12.53752841]
[1749460237534,12.53752841,151.62,151.58,19.13467226]
[1749460238435,12.53752841,151.63,151.59,12.53752841]
[1749460238836,6.59409837,151.66,151.6,12.53752841]
[1749460239003,19.13162678,151.66,151.61,12.53752841]
[1749460239632,19.13162678,151.66,151.61,19.13314598]
[1749460240164,12.53752841,151.65,151.61,19.13314598]
[1749460240978,12.53752841,151.67,151.63,12.53752841]
[1749460241564,12.53752841,151.67,151.63,19.1323355]
[1749460242833,154.33029389,151.68,151.63,19.1323355]
[1749460243033,12.53752841,151.67,151.63,19.1323355]
[1749460243633,166.8678223,151.68,151.63,19.1323355]
[1749460243839,12.53752841,151.67,151.63,12.53752841]
[1749460244061,12.53752841,151.67,151.62,19.13279481]
[1749460245139,19.13086656,151.67,151.62,19.13279481]
[1749460248067,12.53752841,151.66,151.62,19.13279481]
[1749460251352,19.13131012,151.66,151.62,12.53752841]
[1749460253170,6.59378171,151.66,151.62,12.53752841]
[1749460256389,6.59378171,151.66,151.6,32.59622054]
[1749460256572,12.53752841,151.63,151.58,6.59677672]
[1749460256780,12.53752841,151.63,151.58,38.53752841]
[1749460257277,12.53752841,151.62,151.58,26.0]
[1749460258158,12.53752841,151.61,151.55,8.21120828]
[1749460258454,12.53752841,151.61,151.56,12.53752841]
[1749460259478,12.53752841,151.6,151.56,12.53752841]
[1749460260875,12.53752841,151.59,151.55,38.53752841]
[1749460261065,12.53752841,151.58,151.54,19.13638193]
[1749460261268,12.53752841,151.57,151.53,12.53752841]
[1749460261472,12.53752841,151.56,151.52,12.53752841]
[1749460262087,6.59777118,151.57,151.52,12.53752841]
[1749460262088,8.18163279,151.65,151.55,12.53752841]
[1749460262266,19.13296436,151.62,151.57,12.53752841]
[1749460262584,12.53752841,151.61,151.57,12.53752841]
[1749460262982,12.53752841,151.61,151.55,26.0]
[1749460263185,12.53752841,151.61,151.57,12.53752841]
[1749460263570,7.9301,151.68,151.59,12.53752841]
[1749460263780,12.53752841,151.65,151.6,12.53752841]
[1749460264093,6.59326168,151.67,151.57,6.59738979]
[1749460264094,12.53752841,151.64,151.59,12.53752841]
[1749460264264,12.53752841,151.64,151.6,12.53752841]
[1749460264879,12.53752841,151.64,151.6,19.13381903]
[1749460265391,12.53752841,151.63,151.59,12.53752841]
[1749460265582,12.53752841,151.6,151.55,6.59845506]
[1749460265789,12.53752841,151.58,151.54,19.13634418]
[1749460265966,12.53752841,151.6,151.56,12.53752841]
[1749460266171,20.46762841,151.62,151.57,12.53752841]
[1749460266376,20.46762841,151.62,151.54,23.09611021]
[1749460266377,38.53752841,151.64,151.59,12.53752841]
[1749460266576,38.53752841,151.64,151.6,12.53752841]
[1749460266577,12.53752841,151.64,151.6,12.53752841]
[1749460267667,12.53752841,151.64,151.6,19.13358905]
[1749460267865,12.53752841,151.65,151.61,12.53752841]
[1749460268991,12.53752841,151.65,151.6,12.53752841]
[1749460269394,12.53752841,151.65,151.61,12.53752841]
[1749460270504,12.53752841,151.65,151.6,12.53752841]
[1749460271179,19.13167238,151.65,151.6,12.53752841]
[1749460271382,19.13167238,151.65,151.57,26.0]
[1749460271383,12.53752841,151.62,151.57,26.0]
[1749460271703,12.53752841,151.62,151.57,38.53752841]
[1749460272578,0.14216157,151.64,151.58,12.53752841]
[1749460272788,12.53752841,151.63,151.59,12.53752841]
[1749460273574,12.53752841,151.64,151.59,19.13400814]
[1749460273803,6.59440316,151.65,151.59,19.13400814]
[1749460274005,12.53752841,151.64,151.59,19.13400814]
[1749460276199,19.1321123,151.64,151.59,19.13400814]
[1749460277012,12.53752841,151.64,151.59,19.13400814]
[1749460277595,186.62380072,151.66,151.6,12.53752841]
[1749460277793,12.53752841,151.64,151.61,6.59587098]
[1749460278009,12.53752841,151.64,151.6,19.13373594]
[1749460278190,12.53752841,151.64,151.6,6.59620753]
[1749460278808,19.13212462,151.64,151.59,19.13409565]
[1749460280121,12.53752841,151.61,151.56,19.13519886]
[1749460280306,12.53752841,151.6,151.56,19.13519886]
[1749460281331,6.59459621,151.64,151.58,12.53752841]
[1749460281332,12.53752841,151.62,151.58,12.53752841]
[1749460281494,6.59459621,151.64,151.59,12.53752841]
[1749460281495,12.53752841,151.64,151.59,12.53752841]
[1749460281689,154.0301,151.66,151.61,12.53752841]
[1749460281690,12.53752841,151.65,151.61,12.53752841]
[1749460282023,12.53752841,151.65,151.6,12.53752841]
[1749460282313,12.53752841,151.65,151.6,19.1336971]
[1749460282691,19.13166793,151.65,151.6,19.1336971]
[1749460282994,12.53752841,151.64,151.6,19.1336971]
[1749460284532,154.0301,151.66,151.6,19.1336971]
[1749460284819,12.53752841,151.65,151.61,12.53752841]
[1749460286797,12.53752841,151.65,151.61,19.13298477]
[1749460287420,166.56762841,151.66,151.61,19.13298477]
[1749460290615,7.9301,151.66,151.62,12.53752841]
[1749460290800,20.46762841,151.66,151.62,12.53752841]
[1749460291814,20.46762841,151.66,151.61,19.13298477]
[1749460292126,27.06136192,151.66,151.61,19.13298477]
[1749460292419,12.53752841,151.65,151.61,19.13298477]
[1749460296303,20.46762841,151.66,151.61,19.13298477]
[1749460296900,20.46762841,151.66,151.62,12.53752841]
[1749460298026,20.46762841,151.66,151.62,19.1327893]
[1749460299605,27.06142351,151.66,151.61,19.13327371]
[1749460300303,20.46762841,151.66,151.61,19.13327371]
[1749460300825,27.06134149,151.66,151.61,19.13327371]
[1749460301119,20.46762841,151.66,151.61,19.13327371]
[1749460302401,1.5796,151.66,151.62,12.53752841]
[1749460302605,12.53752841,151.67,151.63,12.53752841]
[1749460303010,32.7350197,151.68,151.63,12.53752841]
[1749460303223,12.53752841,151.67,151.63,12.53752841]
[1749460303836,45.13038654,151.68,151.63,19.1323844]
[1749460304503,12.53752841,151.67,151.63,19.1323844]
[1749460304906,19.13079339,151.67,151.63,19.1323844]
[1749460306126,12.53752841,151.66,151.62,12.53752841]
[1749460307125,12.53752841,151.66,151.62,19.13271108]
[1749460307705,19.13079339,151.67,151.63,12.53752841]
[1749460308034,12.53752841,151.67,151.63,12.53752841]
[1749460308625,6.59252959,151.69,151.63,12.53752841]
[1749460308826,6.59252959,151.69,151.62,6.59518267]
[1749460308827,32.59252959,151.69,151.64,12.53752841]
[1749460309028,12.53752841,151.68,151.64,12.53752841]
[1749460309229,12.53752841,151.69,151.65,12.53752841]
[1749460309535,12.53752841,151.7,151.66,12.53752841]
[1749460309930,6.5916322,151.71,151.67,12.53752841]
[1749460310239,12.53752841,151.71,151.67,12.53752841]
[1749460311119,12.53752841,151.7,151.66,19.13118741]
[1749460311436,12.53752841,151.71,151.66,19.13118741]
[1749460311638,38.74970235,151.73,151.67,12.53752841]
[1749460311843,12.53752841,151.72,151.68,12.53752841]
[1749460312340,12.53752841,151.72,151.67,12.53752841]
[1749460312712,12.53752841,151.72,151.67,19.13047046]
[1749460313141,19.12865159,151.72,151.67,19.13047046]
[1749460313331,12.53752841,151.71,151.67,19.13047046]
[1749460315345,19.12865159,151.72,151.67,19.13047046]
[1749460315546,12.53752841,151.72,151.67,19.13047046]
[1749460315840,12.53752841,151.72,151.68,12.53752841]
[1749460317141,12.53752841,151.72,151.68,19.13029478]
[1749460319752,6.59065651,151.73,151.68,12.53752841]
[1749460320048,12.53752841,151.72,151.68,12.53752841]
[1749460320726,19.12818492,151.73,151.68,12.53752841]
[1749460320928,19.12818492,151.73,151.69,12.53752841]
[1749460321650,14.10152841,151.74,151.7,12.53752841]
[1749460322026,12.53752841,151.75,151.71,12.53752841]
[1749460322236,12.53752841,151.75,151.67,49.07641589]
[1749460322237,12.53752841,151.76,151.72,12.53752841]
[1749460322548,19.12656471,151.77,151.73,12.53752841]
[1749460322947,12.53752841,151.8,151.76,12.53752841]
[1749460323743,12.53752841,151.8,151.75,12.53752841]
[1749460324040,19.12528848,151.8,151.75,12.53752841]
[1749460324441,12.53752841,151.77,151.72,19.12846455]
[1749460324955,12.53752841,151.76,151.72,12.53752841]
[1749460325130,12.53752841,151.75,151.7,32.59166527]
[1749460325443,12.53752841,151.75,151.71,12.53752841]
[1749460326351,19.12710306,151.76,151.72,12.53752841]
[1749460327252,12.53752841,151.76,151.72,12.53752841]
[1749460328232,19.12689849,151.76,151.72,12.53752841]
[1749460329964,12.53752841,151.76,151.72,12.53752841]
[1749460330136,12.53752841,151.76,151.72,19.12858979]
[1749460332457,19.12688432,151.76,151.72,12.53752841]
[1749460332759,12.53752841,151.75,151.72,12.53752841]
[1749460333148,12.53752841,151.76,151.72,19.12851395]
[1749460334768,12.53752841,151.77,151.73,12.53752841]
[1749460334974,42.94568238,151.82,151.73,12.53752841]
[1749460334975,12.53752841,151.78,151.73,12.53752841]
[1749460335350,33.687,151.82,151.76,12.53752841]
[1749460335554,33.687,151.82,151.78,12.53752841]
[1749460335555,26.81139638,151.82,151.78,12.53752841]
[1749460335867,12.53752841,151.83,151.79,12.53752841]
[1749460336440,12.53752841,151.85,151.81,12.53752841]
[1749460337074,12.53752841,151.84,151.8,19.12484688]
[1749460337760,160.68582524,151.86,151.81,12.53752841]
[1749460337971,12.53752841,151.85,151.81,12.53752841]
[1749460338588,160.68582524,151.86,151.82,12.53752841]
[1749460338892,0.9287005,151.87,151.84,12.53752841]
[1749460339083,12.53752841,151.86,151.8,6.58754974]
[1749460339381,12.53752841,151.84,151.8,12.53752841]
[1749460340376,12.53752841,151.84,151.8,19.12489709]
[1749460340630,6.58528438,151.86,151.8,19.12489709]
[1749460340755,12.53752841,151.85,151.81,12.53752841]
[1749460341061,13.46622891,151.87,151.83,12.53752841]
[1749460341266,0.9287005,151.87,151.83,12.53752841]
[1749460341968,13.46622891,151.87,151.83,12.53752841]
[1749460342992,13.46622891,151.87,151.83,19.12368306]
[1749460343164,0.9287005,151.87,151.84,12.53752841]
[1749460344171,0.9287005,151.87,151.86,12.53752841]
[1749460344999,0.9287005,151.87,151.86,19.12254092]
[1749460346302,0.9287005,151.87,151.86,38.05651292]
[1749460346479,0.9287005,151.87,151.86,43.32534039]
[1749460347098,0.9287005,151.87,151.86,38.05651292]
[1749460347981,0.9287005,151.87,151.86,37.77218978]
[1749460348190,0.9287005,151.87,151.86,19.12254092]
[1749460348878,0.9287005,151.87,151.86,37.77218978]
[1749460349082,0.9287005,151.87,151.86,38.05651292]
[1749460350879,12.53752841,151.97,151.9,26.0]
[1749460351081,27.26333788,151.98,151.94,12.53752841]
[1749460351291,12.53752841,151.97,151.93,12.53752841]
[1749460351686,14.72580947,151.98,151.93,12.53752841]
[1749460351891,12.53752841,151.97,151.93,12.53752841]
[1749460352304,8.1457,151.98,151.94,12.53752841]
[1749460352512,8.1457,151.98,151.93,12.53752841]
[1749460352513,12.53752841,151.97,151.93,12.53752841]
[1749460352817,21.25594161,151.98,151.94,12.53752841]
[1749460353192,27.8359211,151.98,151.94,12.53752841]
[1749460354204,15.29839269,151.98,151.94,12.53752841]
[1749460354394,8.7184132,151.98,151.94,12.53752841]
[1749460354584,27.83605964,151.98,151.94,12.53752841]
[1749460355114,15.29853123,151.98,151.94,12.53752841]
[1749460355315,27.83605964,151.98,151.94,12.53752841]
[1749460356715,21.25594161,151.98,151.94,12.53752841]
[1749460357322,8.7184132,151.98,151.94,19.11902274]
[1749460357497,0.5727132,151.98,151.97,12.53752841]
[1749460358193,0.5727132,151.98,151.97,19.11777451]
[1749460358496,0.5727132,151.98,151.97,12.53752841]
[1749460359502,0.5727132,151.98,151.96,12.53752841]
[1749460359708,13.11024161,151.98,151.94,38.53752841]
[1749460360309,13.11024161,151.98,151.94,45.11896198]
[1749460360731,0.5727132,151.98,151.95,12.53752841]
[1749460361228,13.11024161,151.98,151.94,45.11896198]
[1749460361943,12.53752841,151.97,151.93,12.53752841]
[1749460363223,12.53752841,151.97,151.93,19.11937939]
[1749460363601,12.53752841,151.97,151.93,12.53752841]
[1749460364311,12.53752841,151.97,151.92,6.58232822]
[1749460364506,12.53752841,151.97,151.93,12.53752841]
[1749460366622,12.53752841,151.97,151.92,19.11985663]
[1749460367005,12.53752841,151.96,151.92,19.11985663]
[1749460367604,13.11024161,151.96,151.92,19.11985663]
[1749460372213,12.53752841,151.94,151.91,32.58278324]
[1749460373133,12.53752841,151.94,151.91,26.0]
[1749460373335,12.53752841,151.94,151.9,19.12072642]
[1749460373336,12.53752841,151.93,151.9,6.58319801]
[1749460374230,12.53752841,151.94,151.9,19.12072642]
[1749460379311,0.5727132,151.96,151.92,12.53752841]
[1749460379512,13.11024161,151.96,151.93,6.58197854]
[1749460382240,0.5727132,151.96,151.93,6.58197854]
[1749460382535,0.5727132,151.96,151.93,19.11950695]
[1749460383806,13.11024161,151.96,151.93,6.58197854]
[1749460384942,0.5727132,151.96,151.93,12.53752841]
[1749460386824,0.5727132,151.96,151.95,12.53752841]
[1749460387920,0.5727132,151.96,151.95,31.18717727]
[1749460388525,0.5727132,151.96,151.94,6.58154534]
[1749460388744,0.5727132,151.96,151.94,19.11907375]
[1749460388923,0.5727132,151.96,151.94,6.58154534]
[1749460389938,0.5727132,151.96,151.94,19.11907375]
[1749460390860,0.5727132,151.96,151.94,6.58154534]
[1749460391035,0.5727132,151.96,151.94,19.11907375]
[1749460391351,0.5727132,151.96,151.94,6.58154534]
[1749460391537,0.5727132,151.96,151.95,12.53752841]
[1749460392361,0.5727132,151.96,151.95,19.11864061]
[1749460394752,0.5727132,151.96,151.95,37.76828947]
[1749460394951,0.5727132,151.96,151.95,63.76828947]
[1749460397255,8.2911,152.02,151.98,26.0]
[1749460397467,20.82862841,152.02,151.98,26.0]
[1749460397670,20.82862841,152.02,151.98,38.53752841]
[1749460398853,20.82862841,152.02,151.99,6.57938022]
[1749460399840,12.53752841,152.01,151.99,6.57938022]
[1749460400757,8.2911,152.02,151.99,6.57938022]
[1749460400969,12.53752841,152.01,151.99,6.57938022]
[1749460402262,8.2911,152.02,151.99,6.57938022]
[1749460402466,12.53752841,152.01,151.99,6.57938022]
[1749460402647,12.53752841,152.01,151.98,32.57969647]
[1749460403964,12.53752841,152.0,151.95,16.45278051]
[1749460404146,12.53752841,151.99,151.96,26.0]
[1749460404338,12.53752841,151.99,151.96,32.58067912]
[1749460404949,12.53752841,152.0,151.96,45.11820753]
[1749460408195,14.86939014,152.02,151.96,45.11820753]
[1749460408477,12.53752841,152.0,151.96,45.11820753]
[1749460409663,12.53752841,151.99,151.96,32.58067912]
[1749460411861,12.53752841,151.97,151.94,12.53752841]
[1749460412064,12.53752841,151.96,151.93,26.0]
[1749460412260,12.53752841,151.95,151.92,6.58241179]
[1749460412973,12.53752841,151.94,151.92,6.58241179]
[1749460413550,12.53752841,151.95,151.92,6.58241179]
[1749460413752,12.53752841,151.94,151.91,32.58277692]
[1749460413951,12.53752841,151.95,151.91,45.12030533]
[1749460414557,8.0781,151.97,151.86,6.58501251]
[1749460414558,12.53752841,151.92,151.86,6.58501251]
[1749460414768,12.53752841,151.89,151.86,6.58501251]
[1749460414962,12.53752841,151.87,151.83,19.12384205]
[1749460415355,12.53752841,151.87,151.83,6.58631364]
[1749460415563,12.53752841,151.87,151.83,45.12384205]
[1749460416075,12.53752841,151.87,151.83,32.58631364]
[1749460416250,12.53752841,151.86,151.83,26.0]
[1749460416582,12.53752841,151.84,151.8,12.53752841]
[1749460416887,12.53752841,151.83,151.79,19.12557768]
[1749460417088,12.53752841,151.83,151.8,26.0]
[1749460417251,12.53752841,151.82,151.79,6.58804927]
[1749460417452,6.5606,151.86,151.8,12.53752841]
[1749460417679,19.09812841,151.86,151.82,19.12413034]
[1749460422389,12.53752841,151.85,151.82,6.58660193]
[1749460422878,12.53752841,151.86,151.82,19.12413034]